[Event "GER-ch Youth U14 2019"]
[Site "Willingen"]
[Date "2019.06.09"]
[Round "1.19"]
[White "Riddell, Joshua S."]
[Black "Kosev, Momchil"]
[Result "1/2-1/2"]
[ECO "B92"]
[WhiteElo "2130"]
[BlackElo "1827"]
[Annotator "NA"]
[PlyCount "102"]
[EventDate "2019.06.07"]
[EventType "swiss"]
[EventRounds "9"]
[EventCountry "GER"]
[SourceTitle "playchess.com"]
[Source "ChessBase"]
[SourceQuality "1"]
[TimeControl "40/5400+30:1800+30"]

1. e4 {[%emt 0:00:00]} c5 {[%emt 0:00:00]} 2. Nf3 {[%emt 0:00:00]} d6 {[%emt 0:00:00]} 3. d4 {[%emt 0:00:00]} cxd4 {[%emt 0:00:00]} 4. Nxd4 {[%emt 0:00:01]} Nf6 {[%emt 0:00:00]} 5. Nc3 {[%emt 0:00:27]} a6 {[%emt 0:00:02]} 6. Be2 {[%emt 0:00:44]} e5 {[%emt 0:00:07]} 7. Nf3 {[%emt 0:00:53]} Be7 {[%emt 0:06:12]} 8. Bg5 {[%emt 0:00:09]} Nbd7 {[%emt 0:00:36]} 9. O-O {[%emt 0:00:46]} O-O {[%emt 0:00:50]} 10. Nd2 {[%emt 0:05:26]} b5 {[%emt 0:03:08]} 11. Bxf6 {[%emt 0:00:37]} Nxf6 {[%emt 0:00:07]} 12. a4 {[%emt 0:01:32]} b4 {[%emt 0:00:53]} 13. Nd5 {[%emt 0:00:09]} Nxd5 {[%emt 0:01:07]} 14. exd5 {[%emt 0:00:01]} f5 {[%emt 0:02:31]} 15. a5 {[%emt 0:01:48]} Ra7 {[%emt 0:13:33]} 16. Nc4 {[%emt 0:01:12]} Qc7 {[%emt 0:07:40]} 17. Qd2 {[%emt 0:01:24]} Qc5 {[%emt 0:02:40]} 18. Ra4 {[%emt 0:00:24]} Rc7 {[%emt 0:15:42]} 19. Rxb4 {[%emt 0:00:46]} Bg5 {[%emt 0:00:07]} 20. Qc3 {[%emt 0:01:19]} Qxd5 {[%emt 0:02:32]} 21. Rd1 Qa8 {[%emt 0:04:02]} 22. Qb3 {[%emt 0:01:34]} Be6 {[%emt 0:10:30]} 23. Rxd6 {[%emt 0:00:23]} Bd5 {[%emt 0:00:42]} 24. Rbb6 {[%emt 0:02:21]} Kh8 {[%emt 0:02:19]} 25. Rxa6 {[%emt 0:00:18]} Bxc4 {[%emt 0:00:04]} 26. Bxc4 {[%emt 0:00:40]} Qe4 {[%emt 0:00:03]} 27. Bd3 {[%emt 0:01:06]} Qe1+ {[%emt 0:01:09]} 28. Bf1 {[%emt 0:00:02]} e4 {[%emt 0:01:14]} 29. c3 {[%emt 0:06:04]} e3 {[%emt 0:00:45]} 30. Rd1 {[%emt 0:00:05]} Qxf2+ {[%emt 0:00:08]} 31. Kh1 {[%emt 0:00:10]} e2 {[%emt 0:00:03]} 32. Bxe2 {[%emt 0:00:12]} Qxe2 {[%emt 0:00:04]} 33. Re6 {[%emt 0:00:38]} Qf2 {[%emt 0:02:43]} 34. Qb6 {[%emt 0:00:45]} Qxb6 {[%emt 0:06:17]} 35. Rxb6 {[%emt 0:00:28]} h6 {[%emt 0:01:08]} 36. Ra1 {[%emt 0:00:58]} Be3 {[%emt 0:01:30]} 37. Rb5 {[%emt 0:00:44]} f4 {[%emt 0:01:51]} 38. a6 {[%emt 0:00:56]} Ra8 {[%emt 0:00:30]} 39. h4 {[%emt 0:01:58]} Rc6 {[%emt 0:00:39]} 40. Rba5 {[%emt 0:00:14]} g6 {[%emt 0:01:52]} 41. Kh2 {[%emt 0:32:39]} Kg7 {[%emt 0:30:27]} 42. Kh3 {[%emt 0:00:14]} Kf6 {[%emt 0:00:33]} 43. Kg4 {[%emt 0:00:27]} Bb6 {[%emt 0:02:13]} 44. Rb5 {[%emt 0:00:16]} Be3 {[%emt 0:00:38]} 45. Rba5 {[%emt 0:00:27]} Rd6 {[%emt 0:01:49]} 46. g3 {[%emt 0:02:16]} Rd2 {[%emt 0:00:33]} 47. gxf4 {[%emt 0:00:31]} Rxb2 {[%emt 0:00:11]} 48. Kf3 {[%emt 0:01:49]} Ba7 {[%emt 0:00:55]} 49. Rd5 {[%emt 0:00:32]} Rc2 {[%emt 0:01:44]} 50. Rd6+ {[%emt 0:00:17]} Kf7 {[%emt 0:00:26]} 51. Rc6 {[%emt 0:00:06]} Bd4 {[%emt 0:01:59] normal} 1/2-1/2

[Event "GER-ch Youth U14 2019"]
[Site "Willingen"]
[Date "2019.06.09"]
[Round "1.20"]
[White "Farokhi, Keyvan"]
[Black "Roste, Hugo"]
[Result "1-0"]
[ECO "A11"]
[WhiteElo "1963"]
[BlackElo "1287"]
[Annotator "NA"]
[PlyCount "57"]
[EventDate "2019.06.07"]
[EventType "swiss"]
[EventRounds "9"]
[EventCountry "GER"]
[SourceTitle "playchess.com"]
[Source "ChessBase"]
[SourceQuality "1"]
[TimeControl "40/5400+30:1800+30"]

1. c4 {[%emt 0:00:00]} c6 {[%emt 0:00:00]} 2. g3 {[%emt 0:00:00]} d5 {[%emt 0:00:00]} 3. Bg2 {[%emt 0:00:16]} Nf6 {[%emt 0:00:33]} 4. Nf3 {[%emt 0:00:31]} Nbd7 {[%emt 0:00:28]} 5. cxd5 {[%emt 0:00:44]} cxd5 {[%emt 0:00:15]} 6. O-O {[%emt 0:00:10]} e6 {[%emt 0:00:41]} 7. d4 {[%emt 0:00:22]} Be7 {[%emt 0:01:12]} 8. Nc3 {[%emt 0:00:26]} O-O {[%emt 0:00:52]} 9. Bf4 {[%emt 0:02:27]} a6 {[%emt 0:04:08]} 10. Rc1 {[%emt 0:00:26]} b5 {[%emt 0:02:01]} 11. a3 {[%emt 0:01:01]} Bb7 {[%emt 0:02:20]} 12. Ne5 {[%emt 0:08:11]} Nxe5 {[%emt 0:03:01]} 13. dxe5 {[%emt 0:00:21]} Nd7 {[%emt 0:00:26]} 14. e4 {[%emt 0:00:16]} dxe4 {[%emt 0:02:29]} 15. Nxe4 {[%emt 0:00:25]} Rc8 {[%emt 0:08:11]} 16. Qg4 {[%emt 0:03:49]} Bxe4 {[%emt 0:04:30]} 17. Bxe4 {[%emt 0:01:34]} f5 {[%emt 0:05:20]} 18. exf6 {[%emt 0:01:28]} Rxf6 {[%emt 0:00:14]} 19. Rxc8 {[%emt 0:04:11]} Qxc8 {[%emt 0:00:27]} 20. Rc1 {[%emt 0:00:09]} Qd8 {[%emt 0:01:31]} 21. Rd1 {[%emt 0:06:41]} Qc8 {[%emt 0:01:39]} 22. Bg5 {[%emt 0:07:06]} Rf7 {[%emt 0:01:01]} 23. Bxe7 {[%emt 0:00:36]} Rxe7 {[%emt 0:00:06]} 24. Bxh7+ {[%emt 0:00:19]} Kf8 {[%emt 0:01:18]} 25. Qf4+ {[%emt 0:04:37]} Rf7 {[%emt 0:02:05]} 26. Qd6+ {[%emt 0:00:08]} Re7 {[%emt 0:00:45]} 27. Bg6 {[%emt 0:05:01]} Qb7 {[%emt 0:03:51]} 28. Rc1 {[%emt 0:02:14]} a5 {[%emt 0:02:05]} 29. Rc7 {[%emt 0:00:18] normal} 1-0

[Event "GER-ch Youth U14 2019"]
[Site "Willingen"]
[Date "2019.06.09"]
[Round "1.21"]
[White "Rockmann, Enno"]
[Black "Tham, Nam"]
[Result "1/2-1/2"]
[ECO "C54"]
[WhiteElo "1527"]
[BlackElo "1993"]
[Annotator "NA"]
[PlyCount "95"]
[EventDate "2019.06.07"]
[EventType "swiss"]
[EventRounds "9"]
[EventCountry "GER"]
[SourceTitle "playchess.com"]
[Source "ChessBase"]
[SourceQuality "1"]
[TimeControl "40/5400+30:1800+30"]

1. e4 {[%emt 0:00:00]} e5 {[%emt 0:00:00]} 2. Nf3 {[%emt 0:00:00]} Nc6 {[%emt 0:00:00]} 3. Bc4 {[%emt 0:00:00]} Bc5 {[%emt 0:00:00]} 4. c3 {[%emt 0:00:00]} Nf6 {[%emt 0:00:00]} 5. d3 {[%emt 0:00:00]} d6 {[%emt 0:00:14]} 6. Nbd2 {[%emt 0:00:00]} a6 {[%emt 0:00:08]} 7. Bb3 {[%emt 0:00:04]} Ba7 {[%emt 0:00:05]} 8. Nf1 {[%emt 0:00:21]} h6 {[%emt 0:00:38]} 9. Ng3 {[%emt 0:00:18]} O-O {[%emt 0:00:48]} 10. O-O {[%emt 0:00:44]} Re8 {[%emt 0:01:17]} 11. Be3 {[%emt 0:02:21]} d5 {[%emt 0:07:17]} 12. Bxa7 {[%emt 0:05:14]} Rxa7 {[%emt 0:00:32]} 13. Re1 {[%emt 0:00:08]} Ra8 {[%emt 0:01:40]} 14. exd5 {[%emt 0:03:38]} Nxd5 {[%emt 0:04:05]} 15. d4 {[%emt 0:01:01]} Nf4 {[%emt 0:06:04]} 16. Nxe5 {[%emt 0:02:28]} Nxe5 {[%emt 0:00:23]} 17. dxe5 {[%emt 0:00:55]} Qg5 {[%emt 0:02:07]} 18. h3 {[%emt 0:05:10]} Be6 {[%emt 0:03:32]} 19. Bxe6 {[%emt 0:01:52]} Rxe6 {[%emt 0:00:29]} 20. Qb3 {[%emt 0:02:23]} Rb6 {[%emt 0:06:01]} 21. Qc2 {[%emt 0:02:11]} Rg6 {[%emt 0:01:14]} 22. Qe4 {[%emt 0:04:25]} c6 {[%emt 0:02:40]} 23. Rad1 {[%emt 0:02:20]} h5 {[%emt 0:04:14]} 24. Rd4 {[%emt 0:06:03]} Ne6 {[%emt 0:03:23]} 25. Rd6 {[%emt 0:01:57]} h4 {[%emt 0:03:35]} 26. Nf5 {[%emt 0:00:18]} Re8 {[%emt 0:02:42]} 27. Nxh4 {[%emt 0:01:03]} Rh6 {[%emt 0:00:17]} 28. Nf3 {[%emt 0:01:04]} Qe7 {[%emt 0:00:30]} 29. Red1 {[%emt 0:00:54]} Ng5 {[%emt 0:11:33]} 30. Nxg5 {[%emt 0:01:12]} Qxg5 {[%emt 0:00:05]} 31. Rxh6 {[%emt 0:01:49]} Qxh6 {[%emt 0:00:13]} 32. f4 {[%emt 0:01:08]} Qe6 {[%emt 0:00:13]} 33. b3 {[%emt 0:01:09]} Qe7 {[%emt 0:00:06]} 34. Re1 {[%emt 0:04:32]} Qa3 {[%emt 0:00:39]} 35. Qc4 {[%emt 0:02:59]} Qxa2 {[%emt 0:01:53]} 36. e6 {[%emt 0:00:08]} fxe6 {[%emt 0:00:22]} 37. Rxe6 {[%emt 0:00:07]} Rxe6 {[%emt 0:00:06]} 38. Qxe6+ {[%emt 0:00:03]} Kh7 {[%emt 0:00:18]} 39. Qf5+ {[%emt 0:03:04]} Kg8 {[%emt 0:02:24]} 40. Qc8+ {[%emt 0:00:07]} Kh7 {[%emt 0:00:03]} 41. Qxb7 {[%emt 0:30:31]} Qd2 {[%emt 0:31:06]} 42. Qxc6 {[%emt 0:01:13]} Qe3+ {[%emt 0:00:29]} 43. Kh1 {[%emt 0:00:45]} Qc1+ {[%emt 0:00:06]} 44. Kh2 {[%emt 0:00:04]} Qxf4+ {[%emt 0:00:05]} 45. g3 {[%emt 0:00:03]} Qd2+ {[%emt 0:00:14] normal} 46. Kh1 {[%emt 0:02:36]} Qe1+ {[%emt 0:00:07] normal} 47. Kh2 {[%emt 0:01:13]} Qd2+ {[%emt 0:00:04]} 48. Kh1 {[%emt 0:00:12] normal} 1/2-1/2

[Event "GER-ch Youth U14 2019"]
[Site "Willingen"]
[Date "2019.06.09"]
[Round "1.22"]
[White "Evering, Soeren"]
[Black "Wellssow, Keoki"]
[Result "1-0"]
[ECO "B06"]
[WhiteElo "1879"]
[BlackElo "1509"]
[Annotator "NA"]
[PlyCount "23"]
[EventDate "2019.06.07"]
[EventType "swiss"]
[EventRounds "9"]
[EventCountry "GER"]
[SourceTitle "playchess.com"]
[Source "ChessBase"]
[SourceQuality "1"]
[TimeControl "40/5400+30:1800+30"]

1. e4 {[%emt 0:00:00]} g6 {[%emt 0:00:00]} 2. d4 {[%emt 0:00:00]} Bg7 {[%emt 0:00:26]} 3. Bc4 {[%emt 0:03:17]} d6 {[%emt 0:02:28]} 4. Nf3 {[%emt 0:01:05]} h6 {[%emt 0:02:10]} 5. O-O {[%emt 0:03:09]} a6 {[%emt 0:03:11]} 6. Qe2 {[%emt 0:01:33]} b5 {[%emt 0:01:37]} 7. Bb3 {[%emt 0:04:02]} Bb7 {[%emt 0:01:58]} 8. e5 {[%emt 0:07:05]} dxe5 {[%emt 0:05:05]} 9. Nxe5 {[%emt 0:03:35]} e6 {[%emt 0:02:32]} 10. Nxf7 {[%emt 0:01:08]} Qe7 {[%emt 0:08:08]} 11. Nxh8 {[%emt 0:00:28]} Bxh8 {[%emt 0:00:18]} 12. Qg4 {normal} 1-0

[Event "GER-ch Youth U14 2019"]
[Site "Willingen"]
[Date "2019.06.09"]
[Round "2.2"]
[White "Pubantz, Jan"]
[Black "Laux, Dominik"]
[Result "1-0"]
[ECO "D11"]
[WhiteElo "2192"]
[BlackElo "2061"]
[Annotator "NA"]
[PlyCount "52"]
[EventDate "2019.06.07"]
[EventType "swiss"]
[EventRounds "9"]
[EventCountry "GER"]
[SourceTitle "playchess.com"]
[Source "ChessBase"]
[SourceQuality "1"]
[TimeControl "40/5400+30:1800+30"]

1. d4 {[%emt 0:00:00]} d5 {[%emt 0:00:00]} 2. c4 {[%emt 0:00:00]} c6 {[%emt 0:00:16]} 3. Nf3 {[%emt 0:00:00]} Nf6 {[%emt 0:00:21]} 4. e3 {[%emt 0:00:00]} e6 {[%emt 0:00:51]} 5. b3 {[%emt 0:00:02]} Bd6 {[%emt 0:01:34]} 6. Bb2 {[%emt 0:00:22]} O-O {[%emt 0:00:50]} 7. Bd3 {[%emt 0:00:14]} Nbd7 {[%emt 0:00:59]} 8. O-O {[%emt 0:00:21]} Re8 {[%emt 0:02:02]} 9. Ne5 {[%emt 0:09:10]} Qc7 {[%emt 0:03:27]} 10. f4 {[%emt 0:03:29]} Ne4 {[%emt 0:02:28]} 11. Bxe4 {[%emt 0:24:03]} dxe4 {[%emt 0:00:02]} 12. Nc3 {[%emt 0:06:09]} f5 {[%emt 0:01:37]} 13. g4 {[%emt 0:02:33]} b6 {[%emt 0:07:09]} 14. Kh1 {[%emt 0:09:21]} Ba6 {[%emt 0:04:56]} 15. Rg1 {[%emt 0:01:54]} Nf6 {[%emt 0:16:21]} 16. g5 {[%emt 0:05:14]} Nd7 {[%emt 0:02:34]} 17. Qh5 {[%emt 0:06:07]} Bxe5 {[%emt 0:06:42]} 18. fxe5 {[%emt 0:00:22]} b5 {[%emt 0:09:22]} 19. cxb5 {[%emt 0:07:15]} cxb5 {[%emt 0:01:48]} 20. Rac1 {[%emt 0:00:13]} Qb7 {[%emt 0:01:51]} 21. Ne2 {[%emt 0:06:42]} b4 {[%emt 0:06:28]} 22. Nf4 {[%emt 0:01:08]} Nb6 {[%emt 0:07:21]} 23. g6 {[%emt 0:00:31]} h6 {[%emt 0:00:45]} 24. Rc5 {[%emt 0:00:22]} Rac8 {[%emt 0:06:07]} 25. Rgc1 {[%emt 0:01:12]} Rxc5 {[%emt 0:01:34]} 26. Rxc5 {[%emt 0:00:14]} Nd7 {[%emt 0:01:01] normal} 1-0

[Event "GER-ch Youth U14 2019"]
[Site "Willingen"]
[Date "2019.06.09"]
[Round "2.3"]
[White "Arakelian, Aik"]
[Black "Colbow, Collin"]
[Result "0-1"]
[ECO "B24"]
[WhiteElo "1911"]
[BlackElo "2169"]
[Annotator "NA"]
[PlyCount "58"]
[EventDate "2019.06.07"]
[EventType "swiss"]
[EventRounds "9"]
[EventCountry "GER"]
[SourceTitle "playchess.com"]
[Source "ChessBase"]
[SourceQuality "1"]
[TimeControl "40/5400+30:1800+30"]

1. e4 {[%emt 0:00:00]} c5 {[%emt 0:00:00]} 2. Nc3 {[%emt 0:00:00]} Nc6 {[%emt 0:00:26]} 3. Nf3 {[%emt 0:00:25]} e5 {[%emt 0:02:52]} 4. Bc4 {[%emt 0:02:48]} d6 {[%emt 0:10:36]} 5. d3 {[%emt 0:03:15]} h6 {[%emt 0:07:42]} 6. Be3 {[%emt 0:01:32]} g6 {[%emt 0:04:11]} 7. Qd2 {[%emt 0:11:22]} Bg7 {[%emt 0:00:50]} 8. h3 {[%emt 0:01:28]} Nge7 {[%emt 0:01:07]} 9. g4 {[%emt 0:02:00]} Nd4 {[%emt 0:09:19]} 10. Nh2 {[%emt 0:04:49]} Be6 {[%emt 0:03:24]} 11. f4 {[%emt 0:15:41]} d5 {[%emt 0:12:07]} 12. exd5 {[%emt 0:08:52]} Nxd5 {[%emt 0:00:47]} 13. Bxd4 {[%emt 0:07:05]} cxd4 {[%emt 0:01:42]} 14. Nxd5 {[%emt 0:01:23]} Bxd5 {[%emt 0:00:27]} 15. O-O-O {[%emt 0:04:21]} Bxh1 {[%emt 0:02:03]} 16. Rxh1 {[%emt 0:00:03]} O-O {[%emt 0:02:59]} 17. f5 {[%emt 0:05:04]} Kh7 {[%emt 0:05:42]} 18. Nf3 {[%emt 0:01:38]} b5 {[%emt 0:01:32]} 19. Bb3 {[%emt 0:01:08]} a5 {[%emt 0:00:41]} 20. a3 {[%emt 0:00:13]} a4 {[%emt 0:03:45]} 21. Ba2 {[%emt 0:00:17]} gxf5 {[%emt 0:03:02]} 22. g5 {[%emt 0:03:01]} e4 {[%emt 0:08:00]} 23. Nh4 {[%emt 0:01:11]} e3 {[%emt 0:02:07]} 24. Qe1 {[%emt 0:01:44]} Qxg5 {[%emt 0:00:57]} 25. Rg1 {[%emt 0:00:15]} Qf6 {[%emt 0:01:55]} 26. Rf1 {[%emt 0:01:17]} f4 {[%emt 0:01:34]} 27. Bd5 {[%emt 0:00:13]} Rae8 {[%emt 0:00:44]} 28. Be4+ {[%emt 0:00:16]} Rxe4 {[%emt 0:00:21]} 29. dxe4 {[%emt 0:00:08]} d3 {[%emt 0:00:17] normal} 0-1

[Event "GER-ch Youth U14 2019"]
[Site "Willingen"]
[Date "2019.06.09"]
[Round "2.4"]
[White "Weihrauch, Jakob"]
[Black "Haack, Kevin"]
[Result "1-0"]
[ECO "B56"]
[WhiteElo "2158"]
[BlackElo "2033"]
[Annotator "NA"]
[PlyCount "61"]
[EventDate "2019.06.07"]
[EventType "swiss"]
[EventRounds "9"]
[EventCountry "GER"]
[SourceTitle "playchess.com"]
[Source "ChessBase"]
[SourceQuality "1"]
[TimeControl "40/5400+30:1800+30"]

1. e4 {[%emt 0:00:00]} c5 {[%emt 0:00:00]} 2. Nf3 {[%emt 0:00:00]} d6 {[%emt 0:00:00]} 3. d4 {[%emt 0:00:00]} cxd4 {[%emt 0:00:00]} 4. Nxd4 {[%emt 0:00:00]} Nf6 {[%emt 0:00:00]} 5. Nc3 {[%emt 0:00:05]} e5 {[%emt 0:00:00]} 6. Bb5+ {[%emt 0:00:51]} Nbd7 {[%emt 0:00:00]} 7. Nf5 {[%emt 0:02:30]} a6 {[%emt 0:00:00]} 8. Bxd7+ {[%emt 0:00:27]} Qxd7 {[%emt 0:00:00]} 9. Ne3 {[%emt 0:01:20]} Qc6 {[%emt 0:00:04]} 10. Qd3 {[%emt 0:00:46]} Be6 {[%emt 0:00:14]} 11. O-O {[%emt 0:01:25]} Be7 {[%emt 0:00:32]} 12. Ncd5 {[%emt 0:05:15]} Bxd5 {[%emt 0:00:36]} 13. exd5 {[%emt 0:00:14]} Qc7 {[%emt 0:01:13]} 14. Nf5 {[%emt 0:09:06]} O-O {[%emt 0:03:46]} 15. c4 {[%emt 0:10:31]} Rac8 {[%emt 0:08:53]} 16. b3 {[%emt 0:06:53]} Rfe8 {[%emt 0:04:54]} 17. Bg5 {[%emt 0:05:33]} Nxd5 {[%emt 0:18:36]} 18. Qxd5 {[%emt 0:04:25]} Bxg5 {[%emt 0:00:21]} 19. Nxd6 {[%emt 0:01:40]} Red8 {[%emt 0:00:57]} 20. Rad1 {[%emt 0:00:22]} Rd7 {[%emt 0:12:02]} 21. Qxe5 {[%emt 0:02:40]} Bf6 {[%emt 0:09:16]} 22. Qf5 {[%emt 0:08:30]} Rcd8 {[%emt 0:04:04]} 23. Ne8 {[%emt 0:00:19]} Qc6 {[%emt 0:04:53]} 24. Nxf6+ {[%emt 0:03:01]} gxf6 {[%emt 0:00:07]} 25. Rxd7 {[%emt 0:06:24]} Rxd7 {[%emt 0:00:32]} 26. Qg4+ {[%emt 0:01:34]} Kh8 {[%emt 0:01:03]} 27. Re1 {[%emt 0:01:39]} Rd8 {[%emt 0:01:43]} 28. h3 {[%emt 0:04:38]} Qd6 {[%emt 0:08:51]} 29. Qe2 {[%emt 0:03:16]} b6 {[%emt 0:01:07]} 30. a4 {[%emt 0:03:10]} Qd3 {[%emt 0:02:41]} 31. Qe7 {[%emt 0:01:39] normal} 1-0

[Event "GER-ch Youth U14 2019"]
[Site "Willingen"]
[Date "2019.06.09"]
[Round "2.5"]
[White "Simukov, Erik"]
[Black "Gallasch, Jonas"]
[Result "1-0"]
[ECO "B18"]
[WhiteElo "1904"]
[BlackElo "2137"]
[Annotator "NA"]
[PlyCount "115"]
[EventDate "2019.06.07"]
[EventType "swiss"]
[EventRounds "9"]
[EventCountry "GER"]
[SourceTitle "playchess.com"]
[Source "ChessBase"]
[SourceQuality "1"]
[TimeControl "40/5400+30:1800+30"]

1. e4 {[%emt 0:00:00]} c6 {[%emt 0:00:00]} 2. d4 {[%emt 0:00:00]} d5 {[%emt 0:00:00]} 3. Nd2 {[%emt 0:00:00]} dxe4 {[%emt 0:00:00]} 4. Nxe4 {[%emt 0:00:00]} Bf5 {[%emt 0:00:22]} 5. Ng3 {[%emt 0:00:00]} Bg6 {[%emt 0:00:09]} 6. Nh3 {[%emt 0:00:14]} e6 {[%emt 0:00:40]} 7. Nf4 {[%emt 0:00:16]} Bd6 {[%emt 0:00:38]} 8. c3 {[%emt 0:00:42]} Nf6 {[%emt 0:01:33]} 9. h4 {[%emt 0:00:10]} Qc7 {[%emt 0:00:57]} 10. Qf3 {[%emt 0:00:12]} Nbd7 {[%emt 0:25:25]} 11. h5 {[%emt 0:00:29]} Bc2 {[%emt 0:01:09]} 12. h6 {[%emt 0:00:09]} g6 {[%emt 0:01:18]} 13. Bd3 {[%emt 0:00:15]} Bxd3 {[%emt 0:00:55]} 14. Nxd3 {[%emt 0:00:07]} O-O {[%emt 0:07:39]} 15. Bg5 {[%emt 0:00:46]} Be7 {[%emt 0:14:15]} 16. O-O {[%emt 0:02:24]} Rfe8 {[%emt 0:15:54]} 17. Rfe1 {[%emt 0:12:23]} Nd5 {[%emt 0:10:35]} 18. Bxe7 {[%emt 0:01:44]} Rxe7 {[%emt 0:00:25]} 19. Ne4 {[%emt 0:00:41]} f5 {[%emt 0:06:27]} 20. Nec5 {[%emt 0:05:44]} Nxc5 {[%emt 0:00:54]} 21. Nxc5 {[%emt 0:00:08]} Rae8 {[%emt 0:05:06]} 22. Nd3 {[%emt 0:00:16]} Nf6 {[%emt 0:00:36]} 23. Ne5 {[%emt 0:00:37]} Nd7 {[%emt 0:01:10]} 24. Nxd7 {[%emt 0:05:13]} Rxd7 {[%emt 0:00:14]} 25. Re5 {[%emt 0:00:43]} Rd5 {[%emt 0:00:44]} 26. Rae1 {[%emt 0:00:16]} Rxe5 {[%emt 0:02:05]} 27. Rxe5 {[%emt 0:00:06]} Qd8 {[%emt 0:00:27]} 28. Qe3 {[%emt 0:00:56]} Kf7 {[%emt 0:00:22]} 29. Kf1 {[%emt 0:20:56]} Qf6 {[%emt 0:02:01]} 30. c4 {[%emt 0:01:10]} Re7 {[%emt 0:00:43]} 31. Ke1 {[%emt 0:02:29]} g5 {[%emt 0:00:48]} 32. g4 {[%emt 0:02:18]} f4 {[%emt 0:00:46]} 33. Qe4 {[%emt 0:00:08]} Qg6 {[%emt 0:00:39]} 34. Qxg6+ {[%emt 0:06:18]} Kxg6 {[%emt 0:00:01]} 35. Ke2 {[%emt 0:01:34]} Kf6 {[%emt 0:01:35]} 36. Kf3 {[%emt 0:00:18]} Rd7 {[%emt 0:00:29]} 37. Ke4 {[%emt 0:00:21]} Rd8 {[%emt 0:00:30]} 38. b4 {[%emt 0:00:54]} Rd7 {[%emt 0:00:52]} 39. a4 {[%emt 0:08:21]} Rc7 {[%emt 0:00:28]} 40. Kd3 {[%emt 0:10:39]} b6 {[%emt 0:00:35]} 41. c5 {[%emt 0:32:54]} b5 {[%emt 0:13:54]} 42. axb5 {[%emt 0:00:00]} cxb5 {[%emt 0:00:06]} 43. Ke4 {[%emt 0:00:00]} Re7 {[%emt 0:01:40]} 44. c6 {[%emt 0:00:00]} a6 {[%emt 0:00:58]} 45. Rc5 {[%emt 0:00:00]} Rc7 {[%emt 0:00:08]} 46. d5 {[%emt 0:00:00]} exd5+ {[%emt 0:01:22]} 47. Kxd5 {[%emt 0:00:00]} Ke7 {[%emt 0:00:29]} 48. Ke5 {[%emt 0:00:00]} Rc8 {[%emt 0:00:51]} 49. Kf5 {[%emt 0:00:00]} Kd6 {[%emt 0:01:57]} 50. Kxg5 {[%emt 0:00:00]} Rxc6 {[%emt 0:00:09]} 51. Rxc6+ {[%emt 0:00:00]} Kxc6 {[%emt 0:00:06]} 52. Kxf4 {[%emt 0:00:00]} Kd7 {[%emt 0:01:23]} 53. Ke5 {[%emt 0:00:00]} Ke7 {[%emt 0:00:09]} 54. g5 {[%emt 0:00:00]} Kf7 {[%emt 0:00:07]} 55. f4 {[%emt 0:00:00]} Kg6 {[%emt 0:00:06]} 56. f5+ {[%emt 0:00:00]} Kxg5 {[%emt 0:00:36]} 57. f6 {[%emt 0:00:00]} Kxh6 {[%emt 0:00:10]} 58. Ke6 {[%emt 0:00:00] normal} 1-0